[Event "Early-Titled-Tuesday-Blitz-April-23-2024"]
[Site "Chess.com"]
[Date "2024.04.23"]
[Round "2"]
[White "kids2010"]
[Black "HZMC92"]
[Result "1-0"]
[WhiteElo "2779"]
[BlackElo "2487"]
[TimeControl "180+1"]
[EndTime "8:17:50 PDT"]
[Termination "kids2010 won by resignation"]

1. e4 {[%clk 0:02:59.3]} 1... c5 {[%clk 0:03:00]} 2. Nc3 {[%clk 0:02:58.7]} 2...
Nc6 {[%clk 0:03:00.2]} 3. Bb5 {[%clk 0:02:58.1]} 3... e6 {[%clk 0:02:59.7]} 4.
Bxc6 {[%clk 0:02:57]} 4... bxc6 {[%clk 0:03:00.6]} 5. f4 {[%clk 0:02:57.6]} 5...
d6 {[%clk 0:03:00.7]} 6. Nf3 {[%clk 0:02:57.6]} 6... Ne7 {[%clk 0:02:51.7]} 7.
O-O {[%clk 0:02:57.1]} 7... Qc7 {[%clk 0:02:44.1]} 8. d3 {[%clk 0:02:56.4]} 8...
Ng6 {[%clk 0:02:40.2]} 9. Qe1 {[%clk 0:02:54.6]} 9... Be7 {[%clk 0:02:39]} 10.
h4 {[%clk 0:02:45]} 10... h5 {[%clk 0:02:19.4]} 11. Qg3 {[%clk 0:02:39.6]} 11...
Bf6 {[%clk 0:01:59.4]} 12. Bd2 {[%clk 0:02:25.3]} 12... e5 {[%clk 0:01:28.3]}
13. f5 {[%clk 0:02:24.6]} 13... Ne7 {[%clk 0:01:28.3]} 14. Bg5 {[%clk
0:02:18.1]} 14... Rg8 {[%clk 0:01:21]} 15. b3 {[%clk 0:02:12.2]} 15... Bb7
{[%clk 0:01:16]} 16. Ne2 {[%clk 0:02:04.6]} 16... O-O-O {[%clk 0:01:09.9]} 17.
Qf2 {[%clk 0:02:04.7]} 17... Kb8 {[%clk 0:01:04.3]} 18. Ng3 {[%clk 0:02:04.4]}
18... Rh8 {[%clk 0:01:05]} 19. c4 {[%clk 0:02:03.6]} 19... Ng8 {[%clk
0:00:54.8]} 20. a3 {[%clk 0:01:59.9]} 20... Nh6 {[%clk 0:00:43.2]} 21. b4 {[%clk
0:01:59.6]} 21... Ng4 {[%clk 0:00:42.2]} 22. Qe2 {[%clk 0:01:59.7]} 22... cxb4
{[%clk 0:00:42.5]} 23. axb4 {[%clk 0:02:00.2]} 23... d5 {[%clk 0:00:28.5]} 24.
c5 {[%clk 0:01:56.1]} 24... dxe4 {[%clk 0:00:27.6]} 25. Nxe4 {[%clk 0:01:52.9]}
25... Qe7 {[%clk 0:00:26.7]} 26. Be3 {[%clk 0:01:36.3]} 26... Bxh4 {[%clk
0:00:21.3]} 27. b5 {[%clk 0:01:35.8]} 27... Nxe3 {[%clk 0:00:18.8]} 28. Qxe3
{[%clk 0:01:36.7]} 28... Bf6 {[%clk 0:00:11.8]} 29. Rfb1 {[%clk 0:01:32]} 29...
Ka8 {[%clk 0:00:12.2]} 30. Nd6 {[%clk 0:01:24.7]} 30... Rd7 {[%clk 0:00:06.4]}
31. d4 {[%clk 0:01:15.2]} 31... exd4 {[%clk 0:00:05.8]} 32. Qa3 {[%clk 0:01:15]}
32... Qe3+ {[%clk 0:00:05.1]} 33. Kf1 {[%clk 0:01:08.8]} 33... Qxa3 {[%clk
0:00:05]} 34. Rxa3 {[%clk 0:01:09.7]} 34... cxb5 {[%clk 0:00:04.7]} 35. Nxb5
{[%clk 0:01:10.6]} 35... Bc6 {[%clk 0:00:05.1]} 36. Nd6 {[%clk 0:01:08.4]} 36...
Rb8 {[%clk 0:00:05.7]} 37. Rba1 {[%clk 0:00:59.6]} 37... Rb4 {[%clk 0:00:04.6]}
38. Kf2 {[%clk 0:00:59.3]} 38... Rb2+ {[%clk 0:00:02.4]} 39. Kg1 {[%clk
0:00:59.6]} 39... Rb4 {[%clk 0:00:03.3]} 40. Rd1 {[%clk 0:00:59.5]} 40... d3
{[%clk 0:00:04]} 41. Raxd3 {[%clk 0:00:58.6]} 41... Bxf3 {[%clk 0:00:04.6]} 42.
gxf3 {[%clk 0:00:58.3]} 42... g5 {[%clk 0:00:03.9]} 43. c6 {[%clk 0:00:57.3]}
43... Rc7 {[%clk 0:00:04]} 44. Rc1 {[%clk 0:00:57.4]} 44... Rb6 {[%clk
0:00:03.7]} 45. Ne4 {[%clk 0:00:56.6]} 45... Be5 {[%clk 0:00:03.6]} 46. Rd8+
{[%clk 0:00:53.8]} 46... Rb8 {[%clk 0:00:04.2]} 47. Rd7 {[%clk 0:00:54.3]} 47...
Rbc8 {[%clk 0:00:04.4]} 48. Rc5 {[%clk 0:00:50.8]} 48... Rxd7 {[%clk 0:00:04.3]}
49. cxd7 {[%clk 0:00:50.4]} 49... Rxc5 {[%clk 0:00:02.7]} 50. d8=Q+ {[%clk
0:00:48.4]} 1-0

[Event "Early-Titled-Tuesday-Blitz-April-23-2024"]
[Site "Chess.com"]
[Date "2024.04.23"]
[Round "2"]
[White "Tejas_Rama"]
[Black "klercaku"]
[Result "1-0"]
[WhiteElo "2524"]
[BlackElo "2264"]
[TimeControl "180+1"]
[EndTime "8:17:51 PDT"]
[Termination "Tejas_Rama won by resignation"]

1. d4 {[%clk 0:02:57]} 1... d5 {[%clk 0:02:59.8]} 2. c4 {[%clk 0:02:47.5]} 2...
e6 {[%clk 0:02:59.9]} 3. Nf3 {[%clk 0:02:47.3]} 3... Nf6 {[%clk 0:03:00.3]} 4.
Nc3 {[%clk 0:02:47.6]} 4... Be7 {[%clk 0:03:00.7]} 5. Bf4 {[%clk 0:02:47.9]}
5... O-O {[%clk 0:03:00.9]} 6. e3 {[%clk 0:02:48.6]} 6... Nbd7 {[%clk
0:02:56.3]} 7. c5 {[%clk 0:02:48.6]} 7... c6 {[%clk 0:02:54.2]} 8. b4 {[%clk
0:02:48.6]} 8... a6 {[%clk 0:02:52.6]} 9. h4 {[%clk 0:02:37.1]} 9... Nh5 {[%clk
0:02:25.5]} 10. Bh2 {[%clk 0:02:36.5]} 10... g6 {[%clk 0:01:23.2]} 11. Be2
{[%clk 0:02:31.5]} 11... Ng7 {[%clk 0:01:19.9]} 12. h5 {[%clk 0:02:16.8]} 12...
Nxh5 {[%clk 0:01:18.4]} 13. g4 {[%clk 0:01:45.8]} 13... Ng7 {[%clk 0:01:18.2]}
14. Bf4 {[%clk 0:01:23.2]} 14... f5 {[%clk 0:01:04.2]} 15. g5 {[%clk 0:01:13.4]}
15... Nh5 {[%clk 0:00:50.2]} 16. Rb1 {[%clk 0:01:13.4]} 16... Nxf4 {[%clk
0:00:47.6]} 17. exf4 {[%clk 0:01:14.3]} 17... b5 {[%clk 0:00:34.7]} 18. Qd2
{[%clk 0:01:01.7]} 18... a5 {[%clk 0:00:33.8]} 19. a3 {[%clk 0:01:02.1]} 19...
axb4 {[%clk 0:00:32.5]} 20. axb4 {[%clk 0:01:03]} 20... Bb7 {[%clk 0:00:31]} 21.
Bd3 {[%clk 0:01:02]} 21... Ra3 {[%clk 0:00:25.4]} 22. Kf1 {[%clk 0:00:58.7]}
22... Qa8 {[%clk 0:00:24.5]} 23. Qb2 {[%clk 0:00:57.7]} 23... Qa7 {[%clk
0:00:17.5]} 24. Re1 {[%clk 0:00:52.1]} 24... Bc8 {[%clk 0:00:10.8]} 25. Rxe6
{[%clk 0:00:49.2]} 25... Nxc5 {[%clk 0:00:09.8]} 26. Rxe7 {[%clk 0:00:36.2]}
26... Qxe7 {[%clk 0:00:07.5]} 27. dxc5 {[%clk 0:00:36]} 27... Ra7 {[%clk
0:00:04.8]} 28. Ne2 {[%clk 0:00:34.8]} 28... Qg7 {[%clk 0:00:03.8]} 29. Ned4
{[%clk 0:00:33]} 29... Re8 {[%clk 0:00:02.6]} 30. Ne5 {[%clk 0:00:33]} 30... Rc7
{[%clk 0:00:02]} 31. Qe2 {[%clk 0:00:31.6]} 31... Rce7 {[%clk 0:00:01.7]} 32.
Ndxc6 {[%clk 0:00:31.5]} 32... Re6 {[%clk 0:00:01.7]} 33. Bxb5 {[%clk
0:00:31.6]} 33... Bb7 {[%clk 0:00:02]} 34. Nd4 {[%clk 0:00:31.6]} 34... Rd8
{[%clk 0:00:02]} 35. c6 {[%clk 0:00:31.3]} 35... Bxc6 {[%clk 0:00:01.8]} 36.
Bxc6 {[%clk 0:00:30.1]} 36... Rc8 {[%clk 0:00:02.2]} 37. b5 {[%clk 0:00:30.6]}
37... Re7 {[%clk 0:00:02.3]} 38. Kg2 {[%clk 0:00:30.1]} 38... Rb8 {[%clk
0:00:02.6]} 39. Rb1 {[%clk 0:00:29.3]} 39... Rc7 {[%clk 0:00:02.7]} 40. b6
{[%clk 0:00:28.7]} 40... Re7 {[%clk 0:00:02.9]} 41. Bxd5+ {[%clk 0:00:29.1]}
41... Kh8 {[%clk 0:00:02.9]} 42. Ndc6 {[%clk 0:00:29.6]} 42... Reb7 {[%clk
0:00:02.3]} 43. Nxb8 {[%clk 0:00:29.8]} 43... Rxb8 {[%clk 0:00:03.2]} 44. b7
{[%clk 0:00:30.3]} 44... Qe7 {[%clk 0:00:03.2]} 45. Nxg6+ {[%clk 0:00:29.8]}
45... hxg6 {[%clk 0:00:03.1]} 46. Qxe7 {[%clk 0:00:30.4]} 1-0

[Event "Early-Titled-Tuesday-Blitz-April-23-2024"]
[Site "Chess.com"]
[Date "2024.04.23"]
[Round "2"]
[White "SahibSinghKnight"]
[Black "KorolDimitriy75"]
[Result "1-0"]
[WhiteElo "2633"]
[BlackElo "2328"]
[TimeControl "180+1"]
[EndTime "8:17:52 PDT"]
[Termination "SahibSinghKnight won on time"]

1. e4 {[%clk 0:03:00.9]} 1... c5 {[%clk 0:03:00.3]} 2. Nf3 {[%clk 0:03:00.9]}
2... d6 {[%clk 0:03:00.6]} 3. d4 {[%clk 0:03:01.5]} 3... cxd4 {[%clk 0:03:01.5]}
4. Nxd4 {[%clk 0:03:02.4]} 4... Nf6 {[%clk 0:03:02.1]} 5. Nc3 {[%clk 0:03:03.1]}
5... g6 {[%clk 0:03:03]} 6. Be3 {[%clk 0:02:59.3]} 6... Bg7 {[%clk 0:03:03.5]}
7. f3 {[%clk 0:02:59.7]} 7... O-O {[%clk 0:03:04.1]} 8. Qd2 {[%clk 0:02:59.8]}
8... Nc6 {[%clk 0:03:04.7]} 9. O-O-O {[%clk 0:03:00]} 9... d5 {[%clk 0:03:04.8]}
10. Qe1 {[%clk 0:03:00.5]} 10... e5 {[%clk 0:03:04.6]} 11. Nxc6 {[%clk
0:02:57.2]} 11... bxc6 {[%clk 0:03:05.5]} 12. exd5 {[%clk 0:02:57.6]} 12... cxd5
{[%clk 0:03:06.2]} 13. Bg5 {[%clk 0:02:57.7]} 13... Be6 {[%clk 0:03:06]} 14.
Qxe5 {[%clk 0:02:56.2]} 14... h6 {[%clk 0:03:01.4]} 15. Bf4 {[%clk 0:02:35.9]}
15... Nh5 {[%clk 0:02:13.2]} 16. Qc7 {[%clk 0:02:30.2]} 16... Nxf4 {[%clk
0:01:18.1]} 17. Qxf4 {[%clk 0:02:28.7]} 17... Qa5 {[%clk 0:01:17.9]} 18. a4
{[%clk 0:02:03.5]} 18... Rab8 {[%clk 0:00:57.6]} 19. Rd3 {[%clk 0:01:42.7]}
19... Rfc8 {[%clk 0:00:44.7]} 20. Qd6 {[%clk 0:01:26.5]} 20... Rxb2 {[%clk
0:00:29.9]} 21. Kxb2 {[%clk 0:01:22.2]} 21... Rxc3 {[%clk 0:00:17.7]} 22. Kc1
{[%clk 0:01:03.2]} 22... Qxa4 {[%clk 0:00:13.1]} 23. Qb8+ {[%clk 0:00:43]} 23...
Kh7 {[%clk 0:00:12.6]} 24. Rxc3 {[%clk 0:00:43.4]} 24... Qa1+ {[%clk 0:00:07.3]}
25. Qb1 {[%clk 0:00:42.1]} 25... Qxc3 {[%clk 0:00:07.2]} 26. Bd3 {[%clk
0:00:42.7]} 26... h5 {[%clk 0:00:06.7]} 27. Qb3 {[%clk 0:00:38.5]} 27... Qa1+
{[%clk 0:00:05.2]} 28. Kd2 {[%clk 0:00:38]} 28... Qd4 {[%clk 0:00:04.7]} 29. Re1
{[%clk 0:00:10.6]} 29... Bh6+ {[%clk 0:00:04.1]} 30. Ke2 {[%clk 0:00:11.2]}
30... Qe5+ {[%clk 0:00:02]} 31. Kf1 {[%clk 0:00:11.7]} 31... Qxh2 {[%clk
0:00:02]} 32. Qb7 {[%clk 0:00:07.5]} 1-0

[Event "Early-Titled-Tuesday-Blitz-April-23-2024"]
[Site "Chess.com"]
[Date "2024.04.23"]
[Round "2"]
[White "Grossboss19"]
[Black "snowlord"]
[Result "1-0"]
[WhiteElo "2632"]
[BlackElo "2905"]
[TimeControl "180+1"]
[EndTime "8:17:55 PDT"]
[Termination "Grossboss19 won by resignation"]

1. c4 {[%clk 0:02:59.1]} 1... e5 {[%clk 0:02:59.5]} 2. Nf3 {[%clk 0:02:59.1]}
2... e4 {[%clk 0:02:56.3]} 3. Nd4 {[%clk 0:02:59]} 3... Nc6 {[%clk 0:02:57]} 4.
Nxc6 {[%clk 0:02:57.9]} 4... dxc6 {[%clk 0:02:57.9]} 5. Nc3 {[%clk 0:02:58.1]}
5... Nf6 {[%clk 0:02:56.9]} 6. d3 {[%clk 0:02:56.5]} 6... exd3 {[%clk
0:02:51.5]} 7. e4 {[%clk 0:02:48.4]} 7... Bc5 {[%clk 0:02:44.6]} 8. Qxd3 {[%clk
0:02:33.9]} 8... Qe7 {[%clk 0:02:33.3]} 9. Be3 {[%clk 0:02:20]} 9... O-O {[%clk
0:02:29.1]} 10. f3 {[%clk 0:02:11.7]} 10... Be6 {[%clk 0:02:25.1]} 11. Bxc5
{[%clk 0:02:02.6]} 11... Qxc5 {[%clk 0:02:25.2]} 12. O-O-O {[%clk 0:02:02.5]}
12... a5 {[%clk 0:02:12.1]} 13. Qd4 {[%clk 0:01:57.6]} 13... Qb4 {[%clk
0:02:04]} 14. g4 {[%clk 0:01:41.9]} 14... c5 {[%clk 0:02:01.2]} 15. Qd3 {[%clk
0:01:36.6]} 15... c6 {[%clk 0:02:01.7]} 16. g5 {[%clk 0:01:35]} 16... Nh5 {[%clk
0:02:01.9]} 17. Qe3 {[%clk 0:01:24.6]} 17... Bxc4 {[%clk 0:01:58.1]} 18. f4
{[%clk 0:01:23.1]} 18... Rfd8 {[%clk 0:01:52.3]} 19. Bh3 {[%clk 0:01:18.4]}
19... g6 {[%clk 0:01:00.8]} 20. Bg4 {[%clk 0:01:17.9]} 20... Ng7 {[%clk
0:01:01.4]} 21. h4 {[%clk 0:01:06.3]} 21... Be6 {[%clk 0:00:55.3]} 22. Be2
{[%clk 0:01:06]} 22... Rd4 {[%clk 0:00:49.8]} 23. a3 {[%clk 0:01:04.9]} 23...
Qb6 {[%clk 0:00:49.2]} 24. h5 {[%clk 0:00:57.1]} 24... Rad8 {[%clk 0:00:49.2]}
25. hxg6 {[%clk 0:00:52.8]} 25... fxg6 {[%clk 0:00:48.3]} 26. Qf2 {[%clk
0:00:44]} 26... Bb3 {[%clk 0:00:26.7]} 27. Qh4 {[%clk 0:00:24.2]} 27... Rxd1+
{[%clk 0:00:18.5]} 28. Bxd1 {[%clk 0:00:20.2]} 28... Bxd1 {[%clk 0:00:18]} 29.
Qxh7+ {[%clk 0:00:19.5]} 29... Kf7 {[%clk 0:00:18.7]} 30. f5 {[%clk 0:00:17.1]}
30... Bh5 {[%clk 0:00:18.9]} 31. fxg6+ {[%clk 0:00:13.7]} 31... Bxg6 {[%clk
0:00:05.2]} 32. Rf1+ {[%clk 0:00:13.6]} 32... Ke6 {[%clk 0:00:03.2]} 33. Qxg6+
{[%clk 0:00:13.7]} 33... Kd7 {[%clk 0:00:03.7]} 34. Qxg7+ {[%clk 0:00:13]} 34...
Kc8 {[%clk 0:00:04.4]} 35. Rf8 {[%clk 0:00:12.8]} 35... Qb3 {[%clk 0:00:03.8]}
36. Rxd8+ {[%clk 0:00:12.3]} 36... Kxd8 {[%clk 0:00:04.7]} 37. Qf8+ {[%clk
0:00:12.6]} 37... Kd7 {[%clk 0:00:05.1]} 38. g6 {[%clk 0:00:12]} 1-0

[Event "Early-Titled-Tuesday-Blitz-April-23-2024"]
[Site "Chess.com"]
[Date "2024.04.23"]
[Round "2"]
[White "Maxfan2008"]
[Black "SchmakAttack"]
[Result "1-0"]
[WhiteElo "2589"]
[BlackElo "2822"]
[TimeControl "180+1"]
[EndTime "8:17:55 PDT"]
[Termination "Maxfan2008 won by resignation"]

1. e4 {[%clk 0:03:00.9]} 1... e5 {[%clk 0:02:59.9]} 2. Nf3 {[%clk 0:03:00.8]}
2... Nc6 {[%clk 0:03:00.4]} 3. Bb5 {[%clk 0:03:01.3]} 3... a6 {[%clk 0:02:58.4]}
4. Ba4 {[%clk 0:03:01.8]} 4... Nf6 {[%clk 0:02:57.1]} 5. O-O {[%clk 0:03:02.3]}
5... Bc5 {[%clk 0:02:57]} 6. c3 {[%clk 0:02:58.7]} 6... b5 {[%clk 0:02:56.9]} 7.
Bc2 {[%clk 0:02:57.1]} 7... d5 {[%clk 0:02:56.7]} 8. d4 {[%clk 0:02:52.6]} 8...
dxe4 {[%clk 0:02:35.3]} 9. Nxe5 {[%clk 0:02:47.6]} 9... Nxe5 {[%clk 0:02:35.2]}
10. dxe5 {[%clk 0:02:48.5]} 10... Qxd1 {[%clk 0:02:34.8]} 11. Rxd1 {[%clk
0:02:49.4]} 11... Ng4 {[%clk 0:02:34.9]} 12. Bxe4 {[%clk 0:02:28]} 12... Nxf2
{[%clk 0:02:31.6]} 13. Bxa8 {[%clk 0:02:27.4]} 13... Nxd1+ {[%clk 0:02:30.6]}
14. Kf1 {[%clk 0:02:27.7]} 14... Nf2 {[%clk 0:01:39]} 15. Nd2 {[%clk 0:02:13.6]}
15... Bf5 {[%clk 0:01:35.7]} 16. Nb3 {[%clk 0:01:54.7]} 16... Bb6 {[%clk
0:01:32.5]} 17. Nd4 {[%clk 0:01:52.6]} 17... Bxd4 {[%clk 0:01:31.2]} 18. cxd4
{[%clk 0:01:53.5]} 18... Be4 {[%clk 0:01:29]} 19. Kxf2 {[%clk 0:01:24.9]} 19...
Bxa8 {[%clk 0:01:28.7]} 20. Bg5 {[%clk 0:01:21]} 20... Kd7 {[%clk 0:01:22.8]}
21. Rc1 {[%clk 0:01:20.5]} 21... Bd5 {[%clk 0:01:21.1]} 22. b3 {[%clk
0:01:18.7]} 22... f6 {[%clk 0:01:07.8]} 23. exf6 {[%clk 0:01:14.8]} 23... gxf6
{[%clk 0:01:08.7]} 24. Bf4 {[%clk 0:01:14.8]} 24... c6 {[%clk 0:01:09.3]} 25. g3
{[%clk 0:01:14.3]} 25... h5 {[%clk 0:01:05.4]} 26. Bd2 {[%clk 0:01:04.6]} 26...
h4 {[%clk 0:00:56.6]} 27. Re1 {[%clk 0:00:58.1]} 27... hxg3+ {[%clk 0:00:56.1]}
28. Kxg3 {[%clk 0:00:59]} 28... Rg8+ {[%clk 0:00:55.2]} 29. Kf4 {[%clk
0:00:53.8]} 29... Rg2 {[%clk 0:00:54.2]} 30. Bb4 {[%clk 0:00:53.7]} 30... Rxh2
{[%clk 0:00:44.7]} 31. Re7+ {[%clk 0:00:52.7]} 31... Kc8 {[%clk 0:00:44.9]} 32.
Ba5 {[%clk 0:00:18.4]} 32... Rxa2 {[%clk 0:00:41.1]} 33. b4 {[%clk 0:00:18.6]}
33... Rf2+ {[%clk 0:00:36.9]} 34. Kg3 {[%clk 0:00:16.6]} 34... Rd2 {[%clk
0:00:33.8]} 35. Kf4 {[%clk 0:00:16.9]} 35... Rxd4+ {[%clk 0:00:33.6]} 36. Kf5
{[%clk 0:00:16.8]} 36... Bc4 {[%clk 0:00:14.8]} 37. Re8+ {[%clk 0:00:14]} 37...
Kd7 {[%clk 0:00:13.7]} 38. Rd8+ {[%clk 0:00:13.2]} 1-0

[Event "Early-Titled-Tuesday-Blitz-April-23-2024"]
[Site "Chess.com"]
[Date "2024.04.23"]
[Round "2"]
[White "average_trans"]
[Black "AlexPapasimakopoulos"]
[Result "1-0"]
[WhiteElo "2250"]
[BlackElo "2666"]
[TimeControl "180+1"]
[EndTime "8:17:56 PDT"]
[Termination "average_trans won by resignation"]

1. d4 {[%clk 0:02:57.3]} 1... Nf6 {[%clk 0:02:58]} 2. Bf4 {[%clk 0:02:57]} 2...
e6 {[%clk 0:02:56.9]} 3. e3 {[%clk 0:02:56.8]} 3... c5 {[%clk 0:02:57.5]} 4. c3
{[%clk 0:02:54.4]} 4... Nc6 {[%clk 0:02:57.5]} 5. h3 {[%clk 0:02:53.5]} 5... d5
{[%clk 0:02:57.6]} 6. Bb5 {[%clk 0:02:50]} 6... Bd6 {[%clk 0:02:57.6]} 7. Ne2
{[%clk 0:02:49.4]} 7... O-O {[%clk 0:02:55.9]} 8. O-O {[%clk 0:02:49.2]} 8... h6
{[%clk 0:02:45.6]} 9. Nd2 {[%clk 0:02:47.1]} 9... a6 {[%clk 0:02:43.2]} 10. Ba4
{[%clk 0:02:46.9]} 10... b5 {[%clk 0:02:41.9]} 11. Bc2 {[%clk 0:02:43.5]} 11...
Bb7 {[%clk 0:02:41.2]} 12. a4 {[%clk 0:02:42.2]} 12... b4 {[%clk 0:02:35]} 13.
Bxd6 {[%clk 0:02:39]} 13... Qxd6 {[%clk 0:02:34.6]} 14. dxc5 {[%clk 0:02:39.1]}
14... Qxc5 {[%clk 0:02:35.5]} 15. Nb3 {[%clk 0:02:33.7]} 15... Qe7 {[%clk
0:02:32.6]} 16. Nbd4 {[%clk 0:02:30.2]} 16... a5 {[%clk 0:02:26.8]} 17. Nxc6
{[%clk 0:02:26.7]} 17... Bxc6 {[%clk 0:02:26.6]} 18. Nd4 {[%clk 0:02:27.6]}
18... Bd7 {[%clk 0:02:26]} 19. Qe2 {[%clk 0:02:21.3]} 19... Rfc8 {[%clk
0:02:22.2]} 20. cxb4 {[%clk 0:02:19.9]} 20... Qxb4 {[%clk 0:02:21.6]} 21. Bd3
{[%clk 0:02:16.6]} 21... Rab8 {[%clk 0:02:19.6]} 22. Bb5 {[%clk 0:02:13.3]}
22... Qd6 {[%clk 0:01:56.9]} 23. Rfc1 {[%clk 0:02:10.5]} 23... e5 {[%clk
0:01:55.1]} 24. Bxd7 {[%clk 0:02:09.8]} 24... Rxc1+ {[%clk 0:01:51.7]} 25. Rxc1
{[%clk 0:02:10.7]} 25... exd4 {[%clk 0:01:51.4]} 26. Bb5 {[%clk 0:02:09.2]}
26... dxe3 {[%clk 0:01:50.3]} 27. Qxe3 {[%clk 0:02:07.9]} 27... d4 {[%clk
0:01:47.5]} 28. Qd2 {[%clk 0:01:56.3]} 28... Ne4 {[%clk 0:01:37.8]} 29. Qd3
{[%clk 0:01:56]} 29... Nc5 {[%clk 0:01:16.3]} 30. Qc4 {[%clk 0:01:53.7]} 30...
Ne6 {[%clk 0:01:15.7]} 31. Rd1 {[%clk 0:01:39]} 31... Rd8 {[%clk 0:01:15.6]} 32.
Qc2 {[%clk 0:01:36.9]} 32... Nf4 {[%clk 0:01:12.4]} 33. Qd2 {[%clk 0:01:34.6]}
33... h5 {[%clk 0:01:06.1]} 34. Qxa5 {[%clk 0:01:30.1]} 34... d3 {[%clk
0:01:06.6]} 35. Qd2 {[%clk 0:01:23.9]} 35... h4 {[%clk 0:01:06.4]} 36. b3 {[%clk
0:01:19.8]} 36... Qd4 {[%clk 0:01:00.7]} 37. Bc4 {[%clk 0:01:15.3]} 37... Qe5
{[%clk 0:00:44.5]} 38. Qe3 {[%clk 0:01:12.6]} 38... Qg5 {[%clk 0:00:44.5]} 39.
Qf3 {[%clk 0:01:07.2]} 39... d2 {[%clk 0:00:37.4]} 40. a5 {[%clk 0:00:59.5]}
40... Rd7 {[%clk 0:00:20.2]} 41. a6 {[%clk 0:00:55.9]} 41... g6 {[%clk
0:00:20.7]} 42. Qg4 {[%clk 0:00:47.9]} 42... Qf6 {[%clk 0:00:19.6]} 43. Qxd7
{[%clk 0:00:45.8]} 43... Qe5 {[%clk 0:00:20.1]} 44. Qxd2 {[%clk 0:00:42.1]}
44... Qe4 {[%clk 0:00:20.2]} 45. Bf1 {[%clk 0:00:41.4]} 45... Kh7 {[%clk
0:00:18.7]} 46. a7 {[%clk 0:00:40.3]} 46... g5 {[%clk 0:00:17.8]} 47. Bd3 {[%clk
0:00:37.1]} 1-0

[Event "Early-Titled-Tuesday-Blitz-April-23-2024"]
[Site "Chess.com"]
[Date "2024.04.23"]
[Round "2"]
[White "Andrey_Klymchuk"]
[Black "conformalfunction"]
[Result "1-0"]
[WhiteElo "2685"]
[BlackElo "2401"]
[TimeControl "180+1"]
[EndTime "8:17:56 PDT"]
[Termination "Andrey_Klymchuk won by resignation"]

1. e4 {[%clk 0:02:45.7]} 1... e6 {[%clk 0:02:54.4]} 2. d4 {[%clk 0:02:45.7]}
2... d5 {[%clk 0:02:54]} 3. Nd2 {[%clk 0:02:46.2]} 3... Nf6 {[%clk 0:02:50]} 4.
e5 {[%clk 0:02:46.1]} 4... Nfd7 {[%clk 0:02:49.2]} 5. c3 {[%clk 0:02:46.5]} 5...
c5 {[%clk 0:02:49.3]} 6. f4 {[%clk 0:02:46.8]} 6... Nc6 {[%clk 0:02:48.9]} 7.
Ndf3 {[%clk 0:02:47]} 7... Qb6 {[%clk 0:02:29.4]} 8. h4 {[%clk 0:02:46.2]} 8...
Be7 {[%clk 0:02:25.1]} 9. a3 {[%clk 0:02:42.7]} 9... f6 {[%clk 0:02:21]} 10. Bd3
{[%clk 0:02:38.8]} 10... f5 {[%clk 0:02:14.1]} 11. Ne2 {[%clk 0:02:35.7]} 11...
Nd8 {[%clk 0:02:02.4]} 12. b4 {[%clk 0:02:32.7]} 12... c4 {[%clk 0:01:59.2]} 13.
Bc2 {[%clk 0:02:31.7]} 13... a5 {[%clk 0:01:58.7]} 14. Bd2 {[%clk 0:02:16.2]}
14... Nf7 {[%clk 0:01:58.9]} 15. Ng5 {[%clk 0:02:12.2]} 15... Nh6 {[%clk
0:01:55.2]} 16. bxa5 {[%clk 0:02:00.7]} 16... Rxa5 {[%clk 0:01:52.2]} 17. Rb1
{[%clk 0:01:51.2]} 17... Qc6 {[%clk 0:01:47.2]} 18. a4 {[%clk 0:01:50.3]} 18...
O-O {[%clk 0:01:42.7]} 19. Rb5 {[%clk 0:01:38]} 19... Rxb5 {[%clk 0:01:42.9]}
20. axb5 {[%clk 0:01:37.6]} 20... Qb6 {[%clk 0:01:43.8]} 21. Qa1 {[%clk
0:01:33.2]} 21... Ng4 {[%clk 0:01:38.8]} 22. Nf3 {[%clk 0:01:20.9]} 22... Qxb5
{[%clk 0:01:33.3]} 23. O-O {[%clk 0:01:17.6]} 23... Nb8 {[%clk 0:01:27.3]} 24.
Rb1 {[%clk 0:01:14.3]} 24... Qa6 {[%clk 0:01:08]} 25. Qb2 {[%clk 0:01:13.5]}
25... Nc6 {[%clk 0:00:53.8]} 26. Ng5 {[%clk 0:01:08.4]} 26... h6 {[%clk
0:00:40.7]} 27. Nf3 {[%clk 0:01:07]} 27... Bd8 {[%clk 0:00:41.2]} 28. Bc1 {[%clk
0:01:03.7]} 28... Rf7 {[%clk 0:00:39.5]} 29. h5 {[%clk 0:01:01.8]} 29... Rd7
{[%clk 0:00:31.9]} 30. Nh2 {[%clk 0:00:55.2]} 30... Nxh2 {[%clk 0:00:31.6]} 31.
Kxh2 {[%clk 0:00:56.1]} 31... Na7 {[%clk 0:00:22.4]} 32. g4 {[%clk 0:00:47.6]}
32... fxg4 {[%clk 0:00:20.6]} 33. Bg6 {[%clk 0:00:35.9]} 33... Nc6 {[%clk
0:00:19.7]} 34. Ng3 {[%clk 0:00:30.8]} 34... Re7 {[%clk 0:00:19.1]} 35. Qe2
{[%clk 0:00:28.7]} 35... Bd7 {[%clk 0:00:16.3]} 36. Qxg4 {[%clk 0:00:28.2]}
36... Be8 {[%clk 0:00:15.8]} 37. f5 {[%clk 0:00:25]} 37... Qa2+ {[%clk
0:00:15.6]} 38. Rb2 {[%clk 0:00:24.9]} 38... Qa1 {[%clk 0:00:15.9]} 39. f6
{[%clk 0:00:24.4]} 39... Qxc1 {[%clk 0:00:14.3]} 40. Rg2 {[%clk 0:00:21.9]}
40... Qg5 {[%clk 0:00:09.4]} 41. Qxg5 {[%clk 0:00:21]} 41... hxg5 {[%clk
0:00:09.4]} 42. fxe7 {[%clk 0:00:21.7]} 42... Bxe7 {[%clk 0:00:08.6]} 43. Bxe8
{[%clk 0:00:22.6]} 43... Kf8 {[%clk 0:00:08.5]} 44. Bxc6 {[%clk 0:00:22.1]}
44... bxc6 {[%clk 0:00:09.4]} 45. Ra2 {[%clk 0:00:22]} 1-0